[Event "2nd Serbia Open Masters 2022"]
[Site "Novi Sad"]
[Date "2022.07.02"]
[Round "5.35"]
[White "Fernandez, Daniel Howard"]
[Black "Savanovic, Aleksandar"]
[Result "*"]
[ECO "E06"]
[WhiteElo "2503"]
[BlackElo "2366"]
[Annotator "TA"]
[PlyCount "115"]
[EventDate "2022.06.28"]
[EventType "swiss"]
[EventCountry "SRB"]
[SourceTitle "playchess.com"]
[Source "ChessBase"]
[SourceQuality "1"]
[TimeControl "40/5400+30:900+30"]

{[%evp 21,115,25,22,14,0,13,16,9,12,-4,-6,-16,0,-4,-4,0,0,0,29,16,15,18,23,0,5,7,6,1,15,20,75,66,86,22,77,35,39,0,0,0,0,0,25,0,0,0,0,0,0,0,9,10,13,9,1,9,35,26,38,33,33,33,32,43,60,65,54,54,110,110,112,104,140,100,110,102,104,94,148,142,232,215,241,249,241,247,247,223,241,241,186,0,0,0,7,0]} 1. Nf3 {[%emt 0:02:25]} Nf6 {[%emt 0:00:11]} 2. c4 {[%emt 1:29:05]} e6 {[%emt 0:00:08]} 3. g3 {[%emt 0:02:11]} d5 {[%emt 0:00:14]} 4. Bg2 {[%emt 0:02:55]} Be7 {[%emt 0:00:11]} 5. d4 {[%emt 0:00:41]} O-O {[%emt 0:00:10]} 6. Nc3 {[%emt 0:00:03]} dxc4 {[%emt 0:00:13]} 7. Ne5 {[%emt 0:00:02]} Nc6 {[%emt 0:01:23]} 8. Bxc6 {[%emt 0:00:10]} bxc6 {[%emt 0:00:05]} 9. Nxc6 {[%emt 0:00:17]} Qe8 {[%emt 0:00:08]} 10. Nxe7+ {[%emt 0:00:03]} Qxe7 {[%emt 0:00:05]} 11. Qa4 {[%emt 0:00:06]} c5 {[%emt 0:00:38]} 12. dxc5 {[%emt 0:00:40] The main line 12.dxc5 scores better than 12.Qxc4. E06: Closed Catalan: Early deviations.} Qxc5 {[%emt 0:00:09]} 13. Be3 {[%emt 1:27:17]} Qc7 {[%emt 0:00:05]} 14. f3 {[%emt 0:01:22] Prevents Ng4.} Nd5 {[%emt 0:09:27]} 15. Nxd5 {[%emt 0:04:18]} exd5 {[%emt 0:00:06]} 16. Bd4 {[%emt 0:00:08] Prevents Qe5.} Qe7 {[%emt 0:08:43] [#]} 17. Rd1 $146 {[%emt 0:02:27]} ({Predecessor:} 17. Kf2 Re8 18. Rae1 a5 19. Qc2 Bh3 20. Qc3 Qg5 21. Qc1 Qf5 22. Qf4 Qxf4 23. gxf4 {½-½ (34) Deac,B (2497)-Parligras,M (2586) Olanesti 2016}) 17... Re8 {[%emt 0:00:46][%csl Ge8][%cal Re7e2]} 18. Rd2 {[%emt 0:00:05] Active counter play!} Bh3 {[%emt 0:05:08]} 19. Kf2 {[%emt 0:00:27] Inhibits Bg2.} h5 {[%emt 0:02:51]} 20. Qa5 {[%emt 0:00:19]} Qe6 {[%emt 0:02:03]} 21. Rhd1 {[%emt 0:07:41]} a6 {[%emt 0:09:04]} 22. Qc3 {[%emt 0:06:23]} Qg6 {[%emt 0:00:24]} 23. Be3 {[%emt 0:07:58]} Be6 {[%emt 0:00:07]} 24. h3 {[%emt 0:01:50]} Rab8 {[%emt 0:04:27]} 25. g4 {[%emt 0:01:19]} hxg4 {[%emt 0:02:09]} (25... h4 $11) 26. hxg4 $16 {[%emt 0:00:02]} f6 {[%emt 0:00:09]} 27. Qa3 {[%emt 0:07:55]} ({White should play} 27. Rh1 $16) 27... Rbd8 {[%emt 0:05:15]} (27... Qh7 $11) 28. Rg1 {[%emt 0:02:07]} ({Much worse is} 28. Qxa6 Bxg4 $1 29. Rxd5 Qh7 30. Rxd8 Qh2+ 31. Ke1 Qh1+ 32. Kf2 Qh2+ 33. Ke1 Qh1+ 34. Kf2 Qh2+ $11) 28... Qh7 {[%emt 0:03:04]} 29. Rd4 {[%emt 0:06:28]} (29. Qc3 $5 {[%cal Rf2g2]}) 29... Qh2+ {[%emt 0:06:42]} 30. Rg2 {[%emt 0:00:52]} Qh4+ {[%emt 0:41:25]} 31. Kf1 {[%emt 0:00:39]} Bc8 {[%emt 0:02:01]} 32. Qa5 {[%emt 0:05:49]} (32. g5 $5 {[%cal Rd4h4]} Qh1+ 33. Rg1 Qh3+ 34. Kf2 $11 (34. Ke1 fxg5 35. Rxg5 Qe6 $15)) 32... Rd7 $1 {[%emt 0:03:11]} 33. Bf4 {[%emt 0:08:58][%cal Be3f4,Bf4g3,Bg3d6,Bd6c5][%mdl 32]} Qh1+ {[%emt 0:04:30]} 34. Rg1 {[%emt 0:00:02]} Qh3+ {[%emt 0:00:25]} 35. Kf2 {[%emt 0:00:01]} Qh4+ {[%emt 0:01:08]} 36. Bg3 {[%emt 0:00:10]} Qg5 {[%emt 0:31:51] Strongly threatening ...Qe3+.} 37. Qd2 {[%emt 0:01:18] Inhibits Qe3+.} (37. Qc3 {with more complications.} Rde7 38. Re1 Re3 39. Qd2) 37... Qxd2 {[%emt 0:00:07]} (37... Rde7 {is interesting.} 38. Re1 Qxd2 39. Rxd2 Rb7) 38. Rxd2 {[%emt 0:00:04]} Rb7 {[%emt 0:02:22]} 39. Bd6 {[%emt 0:05:03]} Rb5 {[%emt 0:03:31]} 40. g5 {[%emt 0:00:00] Hoping for gxf6.} Kf7 {[%emt 0:00:00]} 41. gxf6 {[%emt 0:02:32]} gxf6 {[%emt 0:00:24]} 42. Rh1 {[%emt 0:00:46]} Re6 {[%emt 0:01:59]} 43. a4 {[%emt 0:00:19]} Rb3 {[%emt 0:00:30]} 44. Bc5 {[%emt 0:00:14]} Bb7 {[%emt 0:05:25]} ({Better is} 44... c3 $14 45. bxc3 Rxc3 46. Rxd5 Re5 47. Rxe5 fxe5) 45. Bd4 {[%emt 0:00:09]} Bc6 {[%emt 0:00:18] [#]} 46. Rdd1 $1 {[%emt 0:03:43]} Bxa4 {[%emt 0:04:34]} 47. Rdg1 {[%emt 0:00:03] White wants to mate with Rh7+.} Ke7 {[%emt 0:00:18]} 48. Rg7+ {[%emt 0:00:51][%mdl 1024] White has strong compensation.} Kd6 {[%emt 0:00:08]} 49. Rh8 {[%emt 0:01:26]} Be8 {[%emt 0:00:11]} ({Black should try} 49... Re7 50. Rg6 Re6) 50. Ra7 {[%emt 0:00:16]} Bb5 {[%emt 0:01:19]} (50... a5 $16) 51. Rd8+ $18 {[%emt 0:00:25]} Kc6 {[%emt 0:33:02]} 52. Rdd7 {[%emt 0:03:46][%csl Gd7][%cal Ra7c7]} Ba4 {[%emt 0:01:18]} 53. Rac7+ {[%emt 0:08:54]} Kb5 {[%emt 0:02:18]} 54. Rxd5+ {[%emt 0:00:02]} Kb4 {[%emt 0:30:51]} 55. Rf5 {[%emt 0:00:44]} Bb5 {[%emt 0:02:08]} 56. Bxf6 $2 {[%emt 0:00:53]} (56. Rf7 $18) 56... Rbe3 $11 {[%emt 0:00:26]} 57. Bc3+ {[%emt 0:04:09]} Kb3 {[%emt 0:00:07]} 58. Rcc5 {[%emt 0:00:18] Weighted Error Value: White=0.11 (very precise) /Black=0.13 (very precise)} *

[Event "2nd Serbia Open Masters 2022"]
[Site "Novi Sad"]
[Date "2022.07.02"]
[Round "5.36"]
[White "Karacsonyi, Gellert"]
[Black "Karthik Venkataraman"]
[Result "0-1"]
[ECO "B90"]
[WhiteElo "2338"]
[BlackElo "2480"]
[Annotator "TA"]
[PlyCount "70"]
[EventDate "2022.06.28"]
[EventType "swiss"]
[EventCountry "SRB"]
[SourceTitle "playchess.com"]
[Source "ChessBase"]
[SourceQuality "1"]
[TimeControl "40/5400+30:900+30"]

{[%evp 12,70,11,19,5,16,18,3,37,18,11,11,0,17,8,0,31,32,27,0,39,0,0,18,33,0,0,0,52,48,72,68,293,131,117,76,88,51,55,51,46,-241,-233,-252,-259,-250,-227,-250,-228,-156,-208,-203,-189,-698,-673,-636,-634,-1044,-958,-845,-691]} 1. e4 {[%emt 0:01:01]} c5 {[%emt 0:00:46]} 2. Nf3 {[%emt 0:00:11]} d6 {[%emt 0:00:02]} 3. d4 {[%emt 0:00:09]} cxd4 {[%emt 0:00:04]} 4. Nxd4 {[%emt 0:00:07]} Nf6 {[%emt 0:00:03]} 5. Nc3 {[%emt 0:00:07]} a6 {[%emt 0:00:04]} 6. h3 {[%emt 0:01:11]} e5 {[%emt 0:00:34]} 7. Nde2 {[%emt 0:00:09]} h5 {[%emt 0:00:06] B90: Sicilian Najdorf: Unusual White 6th moves, 6 Be3 Ng4 and 6 Be3 e5.} 8. g3 {[%emt 0:00:49]} Be6 {[%emt 0:00:12]} 9. Bg2 {[%emt 0:00:40]} Be7 {[%emt 0:00:08] The position is equal.} 10. O-O {[%emt 0:01:18]} b5 {[%emt 0:00:34][%cal Bb7b5,Bb5b4][%mdl 32]} 11. a4 {[%emt 0:01:57]} b4 {[%emt 0:00:53]} 12. Nd5 {[%emt 0:00:31]} a5 {[%emt 0:03:15] [#]} 13. c4 $146 {[%emt 0:06:56]} ({Predecessor:} 13. c3 bxc3 14. Nexc3 Nxd5 15. Nxd5 Nc6 16. Nxe7 Qxe7 17. Bd2 h4 18. g4 O-O 19. Bc3 {1-0 (50) Schoppen,C (2506)-Burg,T (2527) Belgium 2020}) 13... h4 {[%emt 0:03:53]} 14. g4 {[%emt 0:05:36]} Na6 {[%emt 0:02:45]} 15. Be3 {[%emt 0:02:54]} Nc5 {[%emt 0:03:06]} 16. Bxc5 {[%emt 0:03:10]} dxc5 {[%emt 0:00:06]} 17. b3 {[%emt 0:19:36]} Nd7 {[%emt 0:02:19]} 18. Kh1 {[%emt 0:02:49]} Ra7 {[%emt 0:03:24]} 19. Qc2 {[%emt 0:03:07]} Nb8 {[%emt 0:04:53]} (19... O-O $11) 20. Rad1 {[%emt 0:00:32][%cal Od5f6]} Qc8 {[%emt 0:02:07]} 21. f4 {[%emt 0:13:39]} exf4 $2 {[%emt 0:01:15]} (21... f6 $14) 22. Qb2 {[%emt 0:03:24]} (22. Rxf4 Nc6 $14) (22. Ndxf4 O-O $16) (22. Nexf4 $18 {Qb2 is the strong threat.} Nc6 23. Qf2) 22... f3 $16 {[%emt 0:06:01]} 23. Bxf3 {[%emt 0:02:06]} O-O {[%emt 0:00:53]} 24. Nef4 {[%emt 0:04:52] [#] Threatens to win with Nh5.} Nc6 $1 {[%emt 0:01:28]} 25. Nh5 {[%emt 0:08:06][%csl Gh5][%cal Rb2g7] Pair of Knights!} f6 {[%emt 0:00:49]} 26. g5 $2 {[%emt 0:00:11][%mdl 8192]} (26. Qf2 $14 {keeps the upper hand.}) 26... Bxd5 $19 {[%emt 0:02:29]} ({Don't do} 26... Bxh3 27. Rg1 Kh8 28. gxf6 Bxf6 29. Nhxf6 $18) 27. exd5 {[%emt 0:07:40]} Qxh3+ {[%emt 0:00:38]} 28. Qh2 {[%emt 0:00:04]} Qxh2+ {[%emt 0:00:42]} 29. Kxh2 {[%emt 0:00:02]} Nd4 {[%emt 0:00:29]} 30. gxf6 {[%emt 0:00:47]} Bd6+ {[%emt 0:02:32]} 31. Kh3 {[%emt 0:01:34]} g6 {[%emt 0:00:08]} ({But not} 31... Nxb3 32. fxg7 Rxg7 33. Nxg7 Kxg7 34. Kxh4 $16) ({And not} 31... gxf6 32. Rde1 $17) 32. Ng7 {[%emt 0:00:52] [#]} (32. Rxd4 cxd4 33. Rg1) 32... Nxf3 {[%emt 0:05:27] Black is clearly winning.} 33. Rxf3 {[%emt 0:01:33]} Rxg7 {[%emt 0:00:13]} 34. Kxh4 {[%emt 0:00:59]} Rh7+ {[%emt 0:00:33]} 35. Kg4 {[%emt 0:00:11]} Re8 {[%emt 0:00:17] Weighted Error Value: White=0.79/Black=0.20 (precise)} 0-1

[Event "2nd Serbia Open Masters 2022"]
[Site "Novi Sad"]
[Date "2022.07.02"]
[Round "5.37"]
[White "Arjun Kalyan"]
[Black "Kochavi, Ori"]
[Result "1-0"]
[ECO "B11"]
[WhiteElo "2477"]
[BlackElo "2365"]
[Annotator "TA"]
[PlyCount "145"]
[EventDate "2022.06.28"]
[EventType "swiss"]
[EventCountry "SRB"]
[SourceTitle "playchess.com"]
[Source "ChessBase"]
[SourceQuality "1"]
[TimeControl "40/5400+30:900+30"]

{[%evp 10,145,16,15,20,25,23,25,33,24,20,19,28,21,20,19,18,0,25,26,13,9,68,64,81,77,76,54,88,89,155,129,143,140,109,0,0,0,0,0,0,0,0,0,0,0,0,0,0,0,0,0,0,0,0,-30,0,0,0,0,0,0,0,0,0,0,0,0,0,0,0,0,16,0,0,0,103,93,127,133,143,133,122,70,70,70,70,70,87,73,73,70,103,102,226,218,246,239,230,230,431,414,5920,4421,6047,5225,5106,5298,4046,3425,975,1240,1193,1120,653,470,29952,12851,12004,6087,12823,5081,29974,29975,29975,29976,29988,29989,29992,29993,29994,29982,29983,29984,29996,29997,29997,29995]} 1. e4 {[%emt 0:02:11]} c6 {[%emt 0:00:05]} 2. Nc3 {[%emt 0:00:15]} d5 {[%emt 0:00:04]} 3. Nf3 {[%emt 0:00:04]} Bg4 {[%emt 0:00:02]} 4. h3 {[%emt 0:00:10]} Bxf3 {[%emt 0:00:05]} 5. Qxf3 {[%emt 0:00:03]} e6 {[%emt 0:00:04]} 6. Be2 {[%emt 0:00:07]} d4 {[%emt 0:00:29] B11: Caro-Kann: Two Knights Variation.} 7. Nb1 {[%emt 0:00:24]} Ne7 {[%emt 0:00:04] is more profitable than 7...Nd7 at the moment.} 8. d3 {[%emt 0:01:25]} Ng6 {[%emt 0:00:09] White has an edge.} 9. g3 {[%emt 0:00:33]} h5 {[%emt 0:00:15]} 10. h4 {[%emt 0:02:41] [#]} a5 $146 {[%emt 0:00:06]} ({Predecessor:} 10... Nd7 11. Nd2 Be7 12. Qg2 Qc7 13. f4 e5 14. f5 Ngf8 15. c3 dxc3 16. bxc3 O-O-O {½-½ (41) Praggnanandhaa,R (2624)-Gukesh,D (2637) La Roda 2022}) 11. O-O {[%emt 0:00:51]} a4 {[%emt 0:00:07]} 12. Qg2 {[%emt 0:02:04]} Nd7 {[%emt 0:17:54]} 13. f4 {[%emt 0:11:40][%cal Bf2f4,Bf4f5][%mdl 32]} e5 {[%emt 0:05:44]} 14. f5 {[%emt 0:00:59]} Ne7 {[%emt 0:00:02]} 15. c3 {[%emt 0:01:16]} c5 {[%emt 0:02:06]} ({Black should play} 15... Nf6 $11) 16. Na3 $14 {[%emt 0:09:14]} Nc6 {[%emt 0:01:39]} 17. c4 {[%emt 0:03:35]} Be7 {[%emt 0:12:31]} 18. Bf3 {[%emt 0:00:49]} Nf8 {[%emt 0:15:20]} 19. Qe2 {[%emt 0:05:05]} g5 {[%emt 0:01:33]} ({Better is} 19... Nb4) 20. f6 $16 {[%emt 0:06:44]} (20. Bxh5 Nd7 $16) 20... Bxf6 {[%emt 0:00:07]} 21. Bxh5 {[%emt 0:00:04]} gxh4 {[%emt 0:01:42] [#]} 22. Bg5 {[%emt 0:13:06]} Bxg5 $11 {[%emt 0:15:26]} 23. Rxf7 {[%emt 0:00:08] White threatens Rh7+ and mate.} Be3+ {[%emt 0:00:03]} 24. Qxe3 {[%emt 0:18:21]} Rxh5 {[%emt 0:00:59]} 25. Qf3 {[%emt 0:02:19]} Rh8 {[%emt 0:00:17]} 26. Rf1 {[%emt 0:01:01]} (26. Rg7 Ne7 27. Qf7+ Kd7 28. Qd5+ Ke8 29. Qf7+ Kd7 30. Qd5+ Ke8 31. Qf7+ Kd7 $17) 26... Qg5 {[%emt 0:11:28]} 27. Rxf8+ {[%emt 0:07:14]} Kd7 {[%emt 0:00:04]} 28. Rf7+ {[%emt 0:03:03]} ({Wrong is} 28. Qf7+ $2 Ne7 29. Rxa8 Qxg3+ 30. Kh1 Qh3+ 31. Kg1 Rxa8 $19) 28... Ne7 {[%emt 0:00:03] ...Rag8 is the strong threat.} 29. Qf5+ {[%emt 0:02:39]} Qxf5 {[%emt 0:00:04]} 30. R1xf5 {[%emt 0:00:39]} ({Much worse is} 30. exf5 Raf8 31. Rg7 Rhg8 $17) 30... Ke8 {[%emt 0:01:10]} 31. R5f6 {[%emt 0:02:33] Strongly threatening Nb5.} Ra6 {[%emt 0:01:15]} 32. gxh4 {[%emt 0:01:26]} (32. Nb5 $5 {[%cal Rb5c7]} Kd7 33. Rf5 $11) 32... Rxf6 {[%emt 0:00:59]} 33. Rxf6 {[%emt 0:04:17][%mdl 4096] Endgame KRN-KRN} Nc6 {[%emt 0:00:31]} 34. Nb5 {[%emt 0:00:00]} Ke7 {[%emt 0:02:24]} 35. Rf3 {[%emt 0:00:00]} Rxh4 {[%emt 0:00:07]} 36. Nc7 {[%emt 0:00:00]} Rg4+ {[%emt 0:06:50]} 37. Kf2 {[%emt 0:00:00]} Rh4 {[%emt 0:00:13]} 38. Kg1 {[%emt 0:00:00] Against Rh2} Rg4+ {[%emt 0:00:03]} 39. Kf2 {[%emt 0:00:00]} Rh4 {[%emt 0:00:03] And now ...Rh2+ would win.} 40. Nd5+ {[%emt 0:00:00]} Ke8 {[%emt 0:00:00]} 41. Kg3 {[%emt 0:03:30] Against Rh2} Rh1 {[%emt 0:00:32]} 42. Nb6 {[%emt 0:01:33]} Rg1+ {[%emt 0:02:18]} (42... a3 $11 43. bxa3 Rg1+ 44. Kh4 Rg2) 43. Kf2 $16 {[%emt 0:01:28]} Rb1 {[%emt 0:08:21]} 44. Nxa4 {[%emt 0:00:06]} Nb8 {[%emt 0:02:21]} 45. Ke2 {[%emt 0:01:40]} ({Don't do} 45. Nxc5 $6 Rxb2+ 46. Kg3 b6 $11) 45... Nd7 {[%emt 0:00:16]} 46. Kd2 {[%emt 0:03:22]} (46. Rf1 $16 Rxf1 47. Kxf1) 46... Rh1 $14 {[%emt 0:00:21]} 47. Rf2 {[%emt 0:00:08]} Ke7 {[%emt 0:00:57]} 48. a3 {[%emt 0:00:23]} Ke6 {[%emt 0:01:19]} 49. Kc2 {[%emt 0:00:18]} b6 {[%emt 0:00:18]} 50. Rg2 {[%emt 0:00:30][%cal Oa4b6]} Kf7 {[%emt 0:00:25]} 51. b4 {[%emt 0:00:50]} cxb4 {[%emt 0:05:55] This costs Black the game.} (51... Ra1 $16) 52. axb4 $18 {[%emt 0:00:02]} Ra1 {[%emt 0:02:07] [#]} 53. Kb3 {[%emt 0:00:13]} Rd1 {[%emt 0:00:07]} 54. Nb2 {[%emt 0:00:13]} Rc1 {[%emt 0:00:03]} (54... Ra1 {keeps fighting.} 55. Rc2 Ke8) 55. Rc2 {[%emt 0:01:44]} Rxc2 {[%emt 0:01:47]} (55... Rh1 $142 56. c5 bxc5 57. bxc5 Ke7) 56. Kxc2 {[%emt 0:00:41] KN-KN} Ke7 {[%emt 0:00:06]} 57. Kb3 {[%emt 0:00:13]} Kd6 {[%emt 0:00:05]} 58. Na4 {[%emt 0:00:26]} Kc7 {[%emt 0:00:25]} 59. b5 {[%emt 0:00:19]} Nf6 {[%emt 0:01:31]} 60. c5 {[%emt 0:00:27]} bxc5 {[%emt 0:00:09]} 61. Nxc5 {[%emt 0:00:02] Black must now prevent Kb4.} Kb6 {[%emt 0:00:36]} 62. Kb4 {[%emt 0:00:12] Hoping for Na4+.} Ng4 {[%emt 0:00:16]} (62... Kc7 $18 63. Ka5 Kd6) 63. Na4+ {[%emt 0:00:19]} Kb7 {[%emt 0:00:04]} 64. Kc5 {[%emt 0:00:22] Threatening mate with Nb2.} Nf2 {[%emt 0:00:30]} 65. Nb2 {[%emt 0:00:10] White wants to mate with b6.} Kc7 {[%emt 0:00:03]} 66. b6+ {[%emt 0:00:10][%cal Bb5b6,Bb6b7][%mdl 32] White mates.} Kb7 {[%emt 0:00:19]} 67. Kb5 {[%emt 0:00:02]} Kb8 {[%emt 0:00:06]} 68. Kc6 {[%emt 0:00:08]} Kc8 {[%emt 0:00:01]} 69. b7+ {[%emt 0:03:28]} Kb8 {[%emt 0:00:03]} 70. Nc4 {[%emt 0:00:42]} Nxd3 {[%emt 0:00:17]} 71. Kb6 {[%emt 0:00:03]} Nb2 {[%emt 0:00:46]} 72. Nxb2 {[%emt 0:00:04]} d3 {[%emt 0:00:04]} 73. Kc6 {[%emt 0:00:06] Weighted Error Value: White=0.05 (flawless) /Black=0.20 (precise)} 1-0

[Event "2nd Serbia Open Masters 2022"]
[Site "Novi Sad"]
[Date "2022.07.02"]
[Round "5.38"]
[White "Hristodoulou, Panagiotis"]
[Black "Nitish Belurkar"]
[Result "1/2-1/2"]
[ECO "B29"]
[WhiteElo "2328"]
[BlackElo "2452"]
[Annotator "TA"]
[PlyCount "94"]
[EventDate "2022.06.28"]
[EventType "swiss"]
[EventCountry "SRB"]
[SourceTitle "playchess.com"]
[Source "ChessBase"]
[SourceQuality "1"]
[TimeControl "40/5400+30:900+30"]

{[%evp 12,93,58,29,26,32,25,9,27,23,29,0,0,0,0,0,0,0,0,0,0,0,37,35,43,37,47,0,0,0,0,0,0,0,0,0,2,0,0,0,0,0,0,0,0,0,0,-2,-4,-4,-6,-8,-8,-19,-18,-20,-8,-8,0,-8,-8,-16,-8,-8,-8,-8,0,0,0,0,0,0,0,0,0,0,0,0,0,0,0,0,0,0]} 1. e4 {[%emt 0:05:44][%cal Be2e4,Be4e5][%mdl 32]} c5 {[%emt 0:00:12]} 2. Nf3 {[%emt 0:01:14]} e6 {[%emt 0:00:10]} 3. g3 {[%emt 0:00:24]} Nf6 {[%emt 0:02:23]} 4. e5 {[%emt 0:02:01]} Nd5 {[%emt 0:00:11]} 5. Bg2 {[%emt 0:00:07]} Nc6 {[%emt 0:01:47]} 6. O-O {[%emt 0:00:14]} d6 {[%emt 0:00:53]} 7. exd6 {[%emt 0:04:06]} Bxd6 {[%emt 0:00:15] B29: Sicilian: 2 Nf3 Nf6 (Nimzowitsch Variation).} 8. d4 {[%emt 0:00:10]} O-O {[%emt 0:02:20]} 9. Re1 {[%emt 0:13:51] [#]} h6 $146 {[%emt 0:10:27]} ({Predecessor:} 9... cxd4 10. Nxd4 Bc5 11. Nxc6 bxc6 12. Nd2 Qb6 13. Ne4 Be7 14. c4 Nf6 15. c5 Qb5 {1-0 (34) Meissner,F (2362)-Ramirez Alvarez,A (2567) Chess.com INT 2020}) 10. a3 {[%emt 0:05:29][%cal Ba2a3,Ba3a4][%mdl 32]} b5 {[%emt 0:16:38]} 11. a4 {[%emt 0:10:23]} b4 {[%emt 0:00:15]} 12. c4 {[%emt 0:00:25]} bxc3 {[%emt 0:00:09]} 13. Nxc3 {[%emt 0:00:17]} Ncb4 {[%emt 0:08:37]} 14. Ne4 {[%emt 0:06:21]} cxd4 {[%emt 0:00:39]} 15. Nxd6 {[%emt 0:02:33]} Qxd6 {[%emt 0:00:11]} 16. Nxd4 {[%emt 0:00:13]} Ba6 {[%emt 0:00:12] [#]} 17. Bxh6 $1 {[%emt 0:10:52]} gxh6 {[%emt 0:14:25]} 18. Qg4+ {[%emt 0:00:15]} Kh8 {[%emt 0:00:06] [#]} 19. Nxe6 $1 {[%emt 0:00:18]} fxe6 $11 {[%emt 0:00:10] The position is equal.} 20. Rxe6 {[%emt 0:00:05] Really sharp!} Nf6 {[%emt 0:00:29][%cal Bd5f6,Bf6g4,Bg4f2,Bf2e4,Be4c5,Bc5d3][%mdl 32]} 21. Rxd6 {[%emt 0:18:03]} (21. Qh3 Qd2 22. Bxa8 Bc8 $17) 21... Nxg4 {[%emt 0:00:07] Pair of Knights!} 22. Bxa8 {[%emt 0:00:05]} Rxa8 {[%emt 0:00:08]} 23. Re1 {[%emt 0:00:05] Prevents Re8.} Nxf2 {[%emt 0:06:54]} 24. Rxh6+ {[%emt 0:03:16]} Kg7 {[%emt 0:00:22]} 25. Ree6 {[%emt 0:01:03] Hoping for Reg6+.} ({Of course not} 25. Rxa6 Nxa6 26. Kxf2 Nc5 27. Re7+ Kf6 $17) 25... Ne4 {[%emt 0:02:21]} 26. Rxa6 {[%emt 0:02:36]} Nxa6 {[%emt 0:00:21]} 27. Rxa6 {[%emt 0:00:06][%cal Bh6a6,Ba6a5,Ba5b5][%mdl 4128] Endgame KRN-KR} Nc5 {[%emt 0:00:27]} 28. Ra5 {[%emt 0:00:14]} Nd3 {[%emt 0:06:26]} 29. Rb5 {[%emt 0:02:26]} Kf6 {[%emt 0:00:28]} 30. Kg2 {[%emt 0:05:41]} Rc8 {[%emt 0:01:00]} 31. Ra5 {[%emt 0:04:40]} Rc2+ {[%emt 0:04:12]} 32. Kf3 {[%emt 0:01:18]} Rxh2 {[%emt 0:03:25]} 33. Rxa7 {[%emt 0:00:18]} Rxb2 {[%emt 0:02:23]} 34. Ke4 {[%emt 0:00:23]} Rb3 {[%emt 0:01:09]} 35. Ra6+ {[%emt 0:00:50]} Ke7 {[%emt 0:00:49] White must now prevent ...Nc5+.} 36. Kf5 {[%emt 0:00:27]} Nc5 {[%emt 0:00:43]} 37. Ra7+ {[%emt 0:00:06]} Kd6 {[%emt 0:00:11]} 38. g4 {[%emt 0:00:23][%cal Bg3g4,Bg4g5,Bg5g6,Bg6g7][%mdl 32]} Rf3+ {[%emt 0:00:07]} 39. Kg6 {[%emt 0:00:04]} Rf4 {[%emt 0:00:31]} 40. g5 {[%emt 0:00:00]} Nxa4 {[%emt 0:00:00]} 41. Kh7 {[%emt 0:05:36]} Rh4+ {[%emt 0:01:51]} 42. Kg7 {[%emt 0:01:55]} Nc5 {[%emt 0:03:11]} 43. g6 {[%emt 0:00:06]} Ne6+ {[%emt 0:02:43]} 44. Kg8 {[%emt 0:00:10]} Ke5 {[%emt 0:00:13]} 45. g7 {[%emt 0:00:16]} Kf6 {[%emt 0:00:03]} 46. Rf7+ {[%emt 0:00:19]} Kg6 {[%emt 0:00:02]} 47. Rf6+ {[%emt 0:00:06]} Kxf6 {[%emt 0:00:05] Weighted Error Value: White=0.04 (flawless) /Black=0.03 (flawless)} 1/2-1/2